bitfinex/quotes_BTCUSD_20250129
["timestamp","ask_amount","ask_price","bid_price","bid_amount"]
[1738169466152,0.39555746,102060.0,102050.0,0.101]
[1738169466847,0.39555746,102060.0,102050.0,0.247986]
[1738169467053,0.1283423,102060.0,102050.0,0.247986]
[1738169467256,0.2753143,102060.0,102050.0,0.101]
[1738169467474,0.2753143,102060.0,102050.0,0.001]
[1738169468238,0.39555746,102060.0,102050.0,0.001]
[1738169468445,0.51625459,102060.0,102050.0,0.001]
[1738169468904,0.66625459,102060.0,102050.0,0.001]
[1738169469118,0.68625459,102060.0,102050.0,0.001]
[1738169469326,1.00875459,102060.0,102050.0,0.001]
[1738169469535,0.99875459,102060.0,102050.0,0.001]
[1738169469745,0.023,102050.0,102040.0,0.00029883]
[1738169469958,0.3483543,102050.0,102040.0,0.00029883]
[1738169470170,0.50542629,102050.0,102040.0,0.00029883]
[1738169471061,1.00792629,102050.0,102040.0,0.00029883]
[1738169473631,0.99792629,102050.0,102040.0,0.00029883]
[1738169473842,1.00792629,102050.0,102040.0,0.00029883]
[1738169474043,0.99792629,102050.0,102040.0,0.00029883]
[1738169474264,1.00792629,102050.0,102040.0,0.00029883]
[1738169474464,0.99792629,102050.0,102040.0,0.00029883]
[1738169475976,1.00792629,102050.0,102040.0,0.00029883]
[1738169476192,0.99792629,102050.0,102040.0,0.00029883]
[1738169476999,1.00766895,102050.0,102040.0,0.00029883]
[1738169477197,1.01766895,102050.0,102040.0,0.00029883]
[1738169477681,1.00766895,102050.0,102040.0,0.00029883]
[1738169478286,1.01766895,102050.0,102040.0,0.00029883]
[1738169478512,1.02751141,102050.0,102040.0,0.00029883]
[1738169478826,0.90681428,102050.0,102040.0,0.00029883]
[1738169479131,0.92681428,102050.0,102040.0,0.00029883]
[1738169479940,0.90381428,102050.0,102040.0,0.00029883]
[1738169480177,1.03751141,102050.0,102040.0,0.00029883]
[1738169481880,0.92681428,102050.0,102040.0,0.00029883]
[1738169482478,1.03751141,102050.0,102040.0,0.00029883]
[1738169483459,1.01451141,102050.0,102040.0,0.00029883]
[1738169483679,1.03751141,102050.0,102040.0,0.00029883]
[1738169484466,0.89681428,102050.0,102040.0,0.00029883]
[1738169484669,0.86722916,102050.0,102040.0,0.00029883]
[1738169484883,0.71722916,102050.0,102040.0,0.00029883]
[1738169487030,0.58972916,102050.0,102040.0,0.00029883]
[1738169487687,0.58987146,102050.0,102040.0,0.00029883]
[1738169488495,0.26737146,102050.0,102040.0,0.00029883]
[1738169489130,0.50916859,102050.0,102040.0,0.00029883]
[1738169490733,0.67916859,102050.0,102040.0,0.00029883]
[1738169494534,1.00166859,102050.0,102040.0,0.00029883]
[1738169495154,0.86097146,102050.0,102040.0,0.00029883]
[1738169495370,0.58987146,102050.0,102040.0,0.14729983]
[1738169495584,0.41988546,102050.0,102040.0,0.14729983]
[1738169495795,0.3226423,102050.0,102040.0,0.14729983]
[1738169497059,0.4926283,102050.0,102040.0,0.00029883]
[1738169497264,0.70056859,102050.0,102040.0,0.00029883]
[1738169497672,0.74846859,102050.0,102040.0,0.00029883]
[1738169498685,0.58987146,102050.0,102040.0,0.00029883]
[1738169500340,0.58987146,102050.0,102040.0,0.14729983]
[1738169500341,0.4926283,102050.0,102040.0,0.14729983]
[1738169500570,0.1701283,102050.0,102040.0,0.00029883]
[1738169500782,0.17135335,102050.0,102040.0,0.00029883]
[1738169501638,0.17135335,102050.0,102040.0,0.14729983]
[1738169502830,0.02436735,102050.0,102040.0,0.22319983]
[1738169503058,0.0231423,102050.0,102040.0,0.22319983]
[1738169503473,0.17135333,102050.0,102040.0,0.22319983]
[1738169507215,0.17135333,102050.0,102040.0,0.14729983]
[1738169509473,0.02436733,102050.0,102040.0,0.14729983]
[1738169509630,0.17135333,102050.0,102040.0,0.14729983]
[1738169512011,0.0231423,102050.0,102040.0,0.19389983]
[1738169512212,0.1701283,102050.0,102040.0,0.19389983]
[1738169512424,0.17135333,102050.0,102040.0,0.19389983]
[1738169512811,0.1701283,102050.0,102040.0,0.19389983]
[1738169513018,0.17135333,102050.0,102040.0,0.19389983]
[1738169513952,0.1471283,102050.0,102040.0,0.29389983]
[1738169514904,0.0001423,102050.0,102040.0,0.37309983]
[1738169520708,0.0001423,102050.0,102040.0,0.47309983]
[1738169521746,0.17135329,102050.0,102040.0,0.00029883]
[1738169522158,0.17135329,102050.0,102040.0,0.14729983]
[1738169522366,0.1701283,102050.0,102040.0,0.14729983]
[1738169522680,0.1701283,102050.0,102040.0,0.00029883]
[1738169522980,0.17135332,102050.0,102040.0,0.00029883]
[1738169523548,0.17135332,102050.0,102040.0,0.14729983]
[1738169523751,0.1701283,102050.0,102040.0,0.14729983]
[1738169523934,0.0231423,102050.0,102040.0,0.14729983]
[1738169524146,0.1701283,102050.0,102040.0,0.14729983]
[1738169529661,0.0231423,102050.0,102040.0,0.14729983]
[1738169530727,0.0001423,102050.0,102040.0,0.14729983]
[1738169530980,0.0001423,102050.0,102040.0,0.32649983]
[1738169532101,0.0001423,102050.0,102040.0,0.62389983]
[1738169533462,0.0001423,102050.0,102040.0,0.6336213]
[1738169534089,0.0001423,102050.0,102040.0,0.6346213]
[1738169534351,0.14835323,102050.0,102040.0,0.2054213]
[1738169534554,0.17135323,102050.0,102040.0,0.00129883]
[1738169536320,0.17135323,102050.0,102040.0,0.00029883]
[1738169538193,0.26859639,102050.0,102040.0,0.00029883]
[1738169538367,0.26737146,102050.0,102040.0,0.00029883]
[1738169542218,0.37806859,102050.0,102040.0,0.00029883]
[1738169542425,0.45856859,102050.0,102040.0,0.00029883]
[1738169547398,0.34787146,102050.0,102040.0,0.00029883]
[1738169547566,0.26737146,102050.0,102040.0,0.00029883]
[1738169549990,0.0231423,102050.0,102040.0,0.19329983]
[1738169550411,0.1701283,102050.0,102040.0,0.19329983]
[1738169550614,0.0231423,102050.0,102040.0,0.19329983]
[1738169551053,0.17135333,102050.0,102040.0,0.19329983]
[1738169551263,0.0231423,102050.0,102040.0,0.19329983]
[1738169551467,0.0001423,102050.0,102040.0,0.27279983]
[1738169552808,0.0001423,102050.0,102040.0,0.62279983]
[1738169553008,0.0001423,102050.0,102040.0,0.72004299]
[1738169553181,0.0001423,102050.0,102040.0,0.75046222]
[1738169555161,0.0001423,102050.0,102040.0,0.75146222]
[1738169555612,0.5001423,102050.0,102040.0,0.75146222]
[1738169556410,0.5001423,102050.0,102040.0,1.07646222]
[1738169557976,0.5001423,102050.0,102040.0,1.07546222]
[1738169558209,0.5001423,102050.0,102040.0,3.42845622]
[1738169558210,0.4021523,102050.0,102040.0,3.42845622]
[1738169558448,0.39020905,102050.0,102040.0,3.47106371]
[1738169558675,0.38077424,102050.0,102040.0,3.09551371]
[1738169558878,0.30003424,102050.0,102040.0,2.66725571]
[1738169559090,0.30003424,102050.0,102040.0,2.64753571]
[1738169559295,0.30003424,102050.0,102040.0,2.64953571]
[1738169559441,0.30003424,102050.0,102040.0,1.66266971]
[1738169559641,0.24124024,102050.0,102040.0,3.02660171]
[1738169559847,0.24124024,102050.0,102040.0,3.01960171]
[1738169560055,0.24124024,102050.0,102040.0,3.02260171]
[1738169560839,0.24124024,102050.0,102040.0,3.03160171]
[1738169561023,0.24124024,102050.0,102040.0,3.13504171]
[1738169561660,0.24124024,102050.0,102040.0,3.12604171]
[1738169561864,0.24124024,102050.0,102040.0,3.12304171]
[1738169562067,0.22164224,102050.0,102040.0,3.12304171]
[1738169562292,0.22164224,102050.0,102040.0,3.13204171]
[1738169562703,0.22164224,102050.0,102040.0,3.13604171]
[1738169563252,0.22164224,102050.0,102040.0,3.13204171]
[1738169563507,0.22164224,102050.0,102040.0,3.13604171]
[1738169563717,0.20204424,102050.0,102040.0,3.13604171]
[1738169564469,0.04355973,102050.0,102040.0,3.13604171]
[1738169564583,0.03784189,102050.0,102040.0,3.13604171]
[1738169564788,0.03784189,102050.0,102040.0,3.12704171]
[1738169565157,8.9e-07,102050.0,102040.0,3.13604171]
[1738169565365,0.00010319,102060.0,102050.0,3.008051]
[1738169565542,0.00010319,102060.0,102050.0,2.48225816]
[1738169566900,0.00010319,102060.0,102050.0,2.48525816]
[1738169567061,0.00010319,102060.0,102050.0,2.49425816]
[1738169570114,0.00010319,102060.0,102050.0,1.03222916]
[1738169570314,0.00010319,102060.0,102050.0,3.71165616]
[1738169570864,0.00010319,102060.0,102050.0,3.56477616]
[1738169571579,0.00010319,102060.0,102050.0,1.14190124]
[1738169571784,0.00010319,102060.0,102050.0,1.15182124]
[1738169574734,0.00010319,102060.0,102050.0,1.47682124]
[1738169575795,0.00010319,102060.0,102050.0,1.46690124]
[1738169575939,0.00010319,102060.0,102050.0,1.47682124]
[1738169577053,0.00010319,102060.0,102050.0,1.50704296]
[1738169577251,0.00010319,102060.0,102050.0,1.47682124]
[1738169577466,0.00010319,102060.0,102050.0,1.50704774]
[1738169577889,0.00010319,102060.0,102050.0,1.47682124]
[1738169580438,0.00010319,102060.0,102050.0,1.50705726]
[1738169580647,0.00010319,102060.0,102050.0,2.04965726]
[1738169586948,0.00010319,102060.0,102050.0,2.58814226]
[1738169589148,1.9e-07,102060.0,102050.0,2.62114226]
[1738169589371,1.9e-07,102060.0,102050.0,2.08265726]
[1738169590480,0.0001423,102080.0,102070.0,0.626557]
[1738169590739,0.0002872,102080.0,102070.0,0.75403618]
[1738169591880,0.0002872,102080.0,102070.0,0.76303618]
[1738169592692,0.0002872,102080.0,102070.0,0.68073618]
[1738169594330,0.0002872,102080.0,102070.0,0.69065618]
[1738169595288,0.0002872,102080.0,102070.0,0.70022669]
[1738169595482,0.0002872,102080.0,102070.0,1.56782669]
[1738169595698,0.0002872,102080.0,102070.0,2.24638169]
[1738169595895,2e-07,102080.0,102070.0,2.26938169]
[1738169596119,2e-07,102080.0,102070.0,1.72358965]
[1738169596571,0.0001024,102090.0,102080.0,4.053542]
[1738169596778,4e-07,102090.0,102080.0,4.59202118]
[1738169596974,4e-07,102090.0,102080.0,0.98652218]
[1738169597803,4e-07,102090.0,102080.0,0.98952218]
[1738169599587,4e-07,102090.0,102080.0,0.99852218]
[1738169600703,4e-07,102090.0,102080.0,0.99552218]
[1738169600925,4e-07,102090.0,102080.0,0.99952218]
[1738169601850,4e-07,102090.0,102080.0,0.99052218]
[1738169601977,4e-07,102090.0,102080.0,0.96652218]
[1738169602392,4e-07,102090.0,102080.0,0.98952218]
[1738169602903,4e-07,102090.0,102080.0,1.07640218]
[1738169606178,4e-07,102090.0,102080.0,1.06652218]
[1738169606379,4e-07,102090.0,102080.0,0.89340218]
[1738169606541,4e-07,102090.0,102080.0,0.94830218]
[1738169608930,4e-07,102090.0,102080.0,0.84830218]
[1738169609090,4e-07,102090.0,102080.0,0.94830218]
[1738169609674,4e-07,102090.0,102080.0,1.03842218]
[1738169610081,4e-07,102090.0,102080.0,0.89830218]
[1738169610289,4e-07,102090.0,102080.0,1.04830218]
[1738169611546,4e-07,102090.0,102080.0,1.12510218]
[1738169612953,4e-07,102090.0,102080.0,1.04810218]
[1738169613154,4e-07,102090.0,102080.0,1.04830218]
[1738169613351,4e-07,102090.0,102080.0,1.59090218]
[1738169616035,4e-07,102090.0,102080.0,1.6142008]
[1738169617246,4e-07,102090.0,102080.0,1.5142008]
[1738169617448,4e-07,102090.0,102080.0,1.2543208]
[1738169617659,0.1233004,102090.0,102080.0,1.3372008]
[1738169618315,0.1233004,102090.0,102080.0,1.3242008]
[1738169618556,0.1233004,102090.0,102080.0,1.2372008]
[1738169618764,0.1233004,102090.0,102080.0,1.3282008]
[1738169618920,0.1233004,102090.0,102080.0,1.3242008]
[1738169619144,0.1233004,102090.0,102080.0,1.3332008]
[1738169619351,0.1233004,102090.0,102080.0,0.7906008]
[1738169620526,0.1233004,102090.0,102080.0,0.7936008]
[1738169621283,0.0773004,102090.0,102080.0,0.7936008]
[1738169623619,4e-07,102090.0,102080.0,0.7936008]
[1738169624709,4e-07,102090.0,102080.0,0.6936008]
[1738169624920,4e-07,102090.0,102080.0,0.7936008]
[1738169627356,4e-07,102090.0,102080.0,0.7837208]
[1738169627556,0.0782004,102090.0,102080.0,0.7936008]
[1738169628386,0.0782004,102090.0,102080.0,0.76336478]
[1738169628801,0.0782004,102090.0,102080.0,0.66612162]
[1738169629017,0.0782004,102090.0,102080.0,0.65712162]
[1738169629234,0.0782004,102090.0,102080.0,0.66412162]
[1738169629459,0.0782004,102090.0,102080.0,0.66112162]
[1738169629673,0.0782004,102090.0,102080.0,0.66312162]
[1738169630816,0.0782004,102090.0,102080.0,0.51312162]
[1738169631097,0.0782004,102090.0,102080.0,0.66312162]
[1738169632136,0.2251294,102090.0,102080.0,0.66312162]
[1738169632508,0.0782004,102090.0,102080.0,0.66312162]
[1738169634272,0.0782004,102090.0,102080.0,0.51312162]
[1738169634487,0.0782004,102090.0,102080.0,0.66312162]
[1738169634910,0.2251294,102090.0,102080.0,0.56312162]
[1738169635317,0.0752004,102090.0,102080.0,0.56312162]
[1738169635958,0.2221294,102090.0,102080.0,0.41612162]
[1738169636366,0.0752004,102090.0,102080.0,0.41612162]
[1738169639084,0.2221294,102090.0,102080.0,0.41612162]
[1738169639305,0.0752004,102090.0,102080.0,0.41612162]
[1738169639915,0.0753426,102090.0,102080.0,0.41612162]
[1738169640922,0.0753426,102090.0,102080.0,0.31612162]
[1738169641117,0.0753426,102090.0,102080.0,0.16612162]
[1738169641331,0.2222716,102090.0,102080.0,0.00929862]
[1738169642398,0.2222716,102090.0,102080.0,0.00729862]
[1738169642538,0.2222716,102090.0,102080.0,0.14724162]
[1738169643191,0.2222716,102090.0,102080.0,0.00029862]
[1738169643598,0.2222716,102090.0,102080.0,0.14724162]
[1738169643859,0.2222716,102090.0,102080.0,0.00129862]
[1738169644896,0.2222716,102090.0,102080.0,0.14824162]
[1738169647120,0.2222716,102090.0,102080.0,0.00129862]
[1738169647980,0.2222716,102090.0,102080.0,0.14824162]
[1738169651109,0.2222716,102090.0,102080.0,0.00129862]
[1738169651771,0.2222716,102090.0,102080.0,0.14824162]
[1738169652273,0.2222716,102090.0,102080.0,0.00129862]
[1738169652585,0.34171942,102090.0,102080.0,0.00129862]
[1738169652787,0.43896258,102090.0,102080.0,0.00129862]
[1738169652993,0.44896258,102090.0,102080.0,0.00129862]
[1738169653410,0.7145104,102090.0,102080.0,0.00129862]
[1738169653615,0.6845104,102090.0,102080.0,0.00129862]
[1738169654722,0.77066672,102090.0,102080.0,0.00129862]
[1738169654900,0.78066672,102090.0,102080.0,0.00029862]
[1738169655102,0.77066672,102090.0,102080.0,0.00029862]
[1738169655307,0.76066672,102090.0,102080.0,0.00029862]
[1738169655670,0.77066672,102090.0,102080.0,0.00029862]
[1738169655868,0.76066672,102090.0,102080.0,0.00029862]
[1738169657522,0.84749471,102090.0,102080.0,0.00029862]
[1738169658149,0.85711419,102090.0,102080.0,0.00029862]
[1738169659555,0.87659505,102090.0,102080.0,0.00029862]
[1738169660615,0.78976706,102090.0,102080.0,0.00029862]
[1738169664145,0.79368706,102090.0,102080.0,0.00029862]
[1738169671403,0.80368706,102090.0,102080.0,0.00029862]
[1738169671596,0.69006108,102090.0,102080.0,0.00029862]
[1738169671881,0.2734147,102090.0,102080.0,0.00029862]
[1738169672115,0.53404068,102090.0,102080.0,0.00029862]
[1738169672314,0.55404068,102090.0,102080.0,0.00029862]
[1738169673428,0.56404068,102090.0,102080.0,0.00029862]
[1738169674665,0.52599171,102090.0,102080.0,0.00029862]
[1738169675080,0.51599171,102090.0,102080.0,0.00029862]
[1738169675459,0.49599171,102090.0,102080.0,0.00029862]
[1738169675894,0.81849171,102090.0,102080.0,0.00029862]
[1738169676416,0.2734147,102090.0,102080.0,0.00029862]
[1738169676574,0.2734147,102090.0,102080.0,0.08279862]
[1738169677835,0.26379522,102090.0,102080.0,0.08279862]
[1738169678378,0.24431436,102090.0,102080.0,0.08279862]
[1738169680516,0.24431436,102090.0,102080.0,0.00029862]
[1738169680734,0.35489032,102090.0,102080.0,0.00029862]
[1738169682043,0.24431436,102090.0,102080.0,0.00029862]
[1738169683170,0.0001422,102090.0,102080.0,0.19704162]
[1738169683394,0.0001422,102090.0,102080.0,0.38004162]
[1738169684163,0.0001422,102090.0,102080.0,0.28004162]
[1738169685170,0.029427,102090.0,102080.0,0.28004162]
[1738169687581,0.029427,102090.0,102080.0,0.72728478]
[1738169687786,0.0001422,102090.0,102080.0,0.72728478]
[1738169690664,0.0001422,102090.0,102080.0,1.05228478]
[1738169692157,0.0001422,102090.0,102080.0,1.05428478]
[1738169692575,0.0001422,102090.0,102080.0,1.05828478]
[1738169693676,0.0001422,102090.0,102080.0,1.06794189]
[1738169696219,0.0001422,102090.0,102080.0,1.57453189]
[1738169696418,0.0001422,102090.0,102080.0,1.60482281]
[1738169697689,0.0001422,102090.0,102080.0,1.60382281]
[1738169698118,0.0001422,102090.0,102080.0,1.60582281]
[1738169698511,0.0001422,102090.0,102080.0,1.60082281]
[1738169698962,0.0001422,102090.0,102080.0,1.60782281]
[1738169699587,0.0001422,102090.0,102080.0,2.02585481]
[1738169699807,0.0001422,102090.0,102080.0,1.75552989]
[1738169700010,0.0001422,102090.0,102080.0,1.64638189]
[1738169700231,0.0001422,102090.0,102080.0,1.75345189]
[1738169700411,0.0001422,102090.0,102080.0,1.75247289]
[1738169700827,0.0001422,102090.0,102080.0,1.64638189]
[1738169701031,0.0001422,102090.0,102080.0,2.74547289]
[1738169701249,0.0001422,102090.0,102080.0,2.61263289]
[1738169701455,0.0001422,102090.0,102080.0,1.62338189]
[1738169701859,0.0001422,102090.0,102080.0,1.46354189]
[1738169702063,0.0001422,102090.0,102080.0,1.37338189]
[1738169702209,0.0001422,102090.0,102080.0,1.61354189]
[1738169702416,0.0001422,102090.0,102080.0,1.62338189]
[1738169703026,0.0001422,102090.0,102080.0,1.52338189]
[1738169703215,0.0001422,102090.0,102080.0,1.03349873]
[1738169703414,0.14829559,102090.0,102080.0,0.01913862]
[1738169703641,0.1470712,102090.0,102080.0,0.01913862]
[1738169703850,0.1470712,102090.0,102080.0,0.16608162]
[1738169704279,0.1470712,102090.0,102080.0,0.16408162]
[1738169704680,0.1470712,102090.0,102080.0,0.16608162]
[1738169705111,0.1470712,102090.0,102080.0,0.15908162]
[1738169705414,0.1470712,102090.0,102080.0,0.15808162]
[1738169706065,0.0001422,102090.0,102080.0,0.35808162]
[1738169707573,0.14829567,102090.0,102080.0,0.00129862]
[1738169708156,0.1470712,102090.0,102080.0,0.00129862]
[1738169708699,0.18979459,102090.0,102080.0,0.00129862]
[1738169709451,0.17754889,102090.0,102080.0,0.00129862]
[1738169711380,0.27479205,102090.0,102080.0,0.00129862]
[1738169711592,0.27356749,102090.0,102080.0,0.00129862]
[1738169712068,0.24431436,102090.0,102080.0,0.00129862]
[1738169712711,0.24431436,102090.0,102080.0,0.00029862]
[1738169712925,0.63249032,102090.0,102080.0,0.00029862]
[1738169713140,0.78706628,102090.0,102080.0,0.00029862]
[1738169713800,0.79667706,102090.0,102080.0,0.00029862]
[1738169714025,0.79567706,102090.0,102080.0,0.00029862]
[1738169714239,0.8155598,102090.0,102080.0,0.00029862]
[1738169714449,0.91291656,102090.0,102080.0,0.00029862]
[1738169714665,0.339943,102080.0,102070.0,0.00021068]
[1738169714880,0.62606212,102080.0,102070.0,0.00021068]
[1738169715097,0.67406212,102080.0,102070.0,0.00021068]
[1738169715327,0.65406212,102080.0,102070.0,0.00021068]
[1738169717031,0.235672,102060.0,102050.0,0.00029883]
[1738169717239,0.44349112,102060.0,102050.0,0.00044373]
[1738169719147,0.98509112,102060.0,102050.0,0.00044373]
[1738169719547,1.00509112,102060.0,102050.0,0.00044373]
[1738169719919,1.00809112,102060.0,102050.0,0.00044373]
[1738169720045,1.00909112,102060.0,102050.0,0.00144373]
[1738169720867,1.01869722,102060.0,102050.0,0.00144373]
[1738169721277,0.99869722,102060.0,102050.0,0.00144373]
[1738169723324,0.67619722,102060.0,102050.0,0.00144373]
[1738169723532,0.56562126,102060.0,102050.0,0.00144373]
[1738169724208,0.54262126,102060.0,102050.0,0.00144373]
[1738169725032,0.40782126,102060.0,102050.0,0.00144373]
[1738169725438,0.42767342,102060.0,102050.0,0.00144373]
[1738169725657,0.27767342,102060.0,102050.0,0.00144373]
[1738169726298,0.3190257,102060.0,102050.0,0.00144373]
[1738169726806,0.3150257,102060.0,102050.0,0.00044373]
[1738169727218,0.3180257,102060.0,102050.0,0.00044373]
[1738169729579,0.30577401,102060.0,102050.0,0.00044373]
[1738169730893,0.27667342,102060.0,102050.0,0.00044373]
[1738169732171,0.25682126,102060.0,102050.0,0.00044373]
[1738169732527,0.36739722,102060.0,102050.0,0.00044373]
[1738169732913,0.25682126,102060.0,102050.0,0.00044373]
[1738169735008,0.149972,102060.0,102050.0,0.00044373]
[1738169735160,0.149972,102060.0,102050.0,0.08054373]
[1738169735363,0.149972,102060.0,102050.0,0.22752973]
[1738169735665,0.003,102060.0,102050.0,0.52272973]
[1738169735877,0.003,102060.0,102050.0,0.61997289]
[1738169736322,0.001,102060.0,102050.0,0.61997289]
[1738169736919,0.002,102060.0,102050.0,0.61997289]
[1738169737138,0.001,102060.0,102050.0,0.61997289]
[1738169737345,0.342903,102070.0,102060.0,0.246972]
[1738169738666,0.343903,102070.0,102060.0,0.246972]
[1738169738892,0.539859,102070.0,102050.0,0.92455909]
[1738169739035,0.540859,102070.0,102050.0,1.12053309]
[1738169739235,0.540858,102070.0,102050.0,0.92455909]
[1738169739471,0.540858,102070.0,102050.0,1.12053309]
[1738169739704,0.539858,102070.0,102050.0,0.92455909]
[1738169739905,0.08905188,102060.0,102050.0,0.53262209]
[1738169741168,0.0292583,102060.0,102050.0,0.53262209]
[1738169741377,0.0292583,102060.0,102050.0,0.53362209]
[1738169741810,0.0292583,102060.0,102050.0,0.53262209]
[1738169742011,0.0292583,102060.0,102050.0,0.53362209]
[1738169744145,0.0292583,102060.0,102050.0,0.54346209]
[1738169754363,0.0292583,102060.0,102050.0,0.74070525]
[1738169754574,0.0292583,102060.0,102050.0,0.73086525]
[1738169754792,0.0292583,102060.0,102050.0,0.74066525]
[1738169755035,0.0292583,102060.0,102050.0,0.77099686]
[1738169756198,0.0001423,102070.0,102060.0,0.474672]
[1738169757651,0.0011423,102070.0,102060.0,0.474672]
[1738169757805,0.0011423,102070.0,102060.0,0.484472]
[1738169759958,0.0011423,102070.0,102060.0,0.485472]
[1738169760323,0.0001423,102070.0,102060.0,0.58271516]
[1738169760548,0.0001423,102070.0,102060.0,0.63151516]
[1738169760952,0.0001423,102070.0,102060.0,0.95651516]
[1738169763537,0.0001423,102070.0,102060.0,0.84671516]
[1738169763744,0.0001423,102070.0,102060.0,0.849472]
[1738169763967,0.0001423,102070.0,102060.0,0.859272]
[1738169764573,0.1470993,102070.0,102060.0,0.859272]
[1738169765149,0.1470993,102070.0,102060.0,0.521772]
[1738169765361,0.1763576,102070.0,102060.0,0.3358]
[1738169765557,0.1775823,102070.0,102060.0,0.3358]
[1738169765782,0.1763576,102070.0,102060.0,0.3358]
[1738169766196,0.1763576,102070.0,102060.0,0.482772]
[1738169766623,0.1763576,102070.0,102060.0,0.3348]
[1738169767238,0.17758229,102070.0,102060.0,0.3348]
[1738169767391,0.17858229,102070.0,102060.0,0.3348]
[1738169767800,0.1773576,102070.0,102060.0,0.3348]
[1738169768178,0.1480993,102070.0,102060.0,0.3348]
[1738169769025,0.1480993,102070.0,102060.0,0.481772]
[1738169769654,0.1480993,102070.0,102060.0,0.48207083]
[1738169770055,0.1480993,102070.0,102060.0,0.33509883]
[1738169770259,0.17744492,102070.0,102060.0,0.33509883]
[1738169770457,0.17744492,102070.0,102060.0,0.48207083]
[1738169770778,0.17744492,102070.0,102060.0,0.15707083]
[1738169770956,0.03048792,102070.0,102060.0,0.15707083]
[1738169771161,0.17744492,102070.0,102060.0,0.15707083]
[1738169773814,0.17744492,102070.0,102060.0,0.01009883]
[1738169774014,0.17744492,102070.0,102060.0,0.00029883]
[1738169774238,0.17866961,102070.0,102060.0,0.00029883]
[1738169775291,0.24656715,102070.0,102060.0,0.00029883]
[1738169775496,0.48391842,102070.0,102060.0,0.00029883]
[1738169775921,0.74127518,102070.0,102060.0,0.00029883]
[1738169776143,1.10677518,102070.0,102060.0,0.00029883]
[1738169776360,1.00941842,102070.0,102060.0,0.00029883]
[1738169776567,0.99941842,102070.0,102060.0,0.00029883]
[1738169777014,0.53984796,102060.0,102050.0,0.0003642]
[1738169777227,0.63709112,102060.0,102050.0,0.0003642]
[1738169777461,0.51011912,102060.0,102050.0,0.0003642]
[1738169777679,0.53011912,102060.0,102050.0,0.0003642]
[1738169777894,0.51011912,102060.0,102050.0,0.0003642]
[1738169778103,0.53011912,102060.0,102050.0,0.0003642]
[1738169778314,0.51011912,102060.0,102050.0,0.0003642]
[1738169778945,0.53011912,102060.0,102050.0,0.0003642]
[1738169779099,0.53211912,102060.0,102050.0,0.0003642]
[1738169779714,0.85461912,102060.0,102050.0,0.0003642]
[1738169779919,0.85261912,102060.0,102050.0,0.0003642]
[1738169780276,0.85661912,102060.0,102050.0,0.0013642]
[1738169780677,0.85861912,102060.0,102050.0,0.0013642]
[1738169781346,0.85661912,102060.0,102050.0,0.0013642]
[1738169781686,0.86923441,102060.0,102050.0,0.0013642]
[1738169782162,0.86937671,102060.0,102050.0,0.0013642]
[1738169789236,0.84937671,102060.0,102050.0,0.0013642]
[1738169791691,0.71369374,102060.0,102050.0,0.0013642]
[1738169791903,0.69369374,102060.0,102050.0,0.0013642]
[1738169792115,0.2972,102050.0,102040.0,0.00029883]
[1738169792322,0.61559508,102050.0,102040.0,0.00029883]
[1738169792542,0.23437596,102040.0,102030.0,0.00029862]
[1738169792750,0.33161912,102040.0,102030.0,0.00029862]
[1738169793161,0.37941912,102040.0,102030.0,0.00029862]
[1738169794596,0.38441912,102040.0,102030.0,0.00129862]
[1738169795452,0.40394032,102040.0,102030.0,0.00129862]
[1738169795895,0.44315832,102040.0,102030.0,0.00129862]
[1738169798506,0.5634358,102040.0,102030.0,0.00129862]
[1738169798916,0.64477938,102040.0,102030.0,0.00129862]
[1738169799119,0.46285984,102040.0,102030.0,0.00129862]
[1738169799546,0.5734358,102040.0,102030.0,0.00129862]
[1738169799795,0.6934358,102040.0,102030.0,0.00129862]
[1738169801879,0.58285984,102040.0,102030.0,0.00129862]
[1738169802089,0.60285984,102040.0,102030.0,0.00129862]
[1738169802252,0.61285984,102040.0,102030.0,0.00129862]
[1738169802442,0.59285984,102040.0,102030.0,0.00129862]
[1738169802644,0.61285984,102040.0,102030.0,0.00129862]
[1738169803059,0.59285984,102040.0,102030.0,0.00129862]
[1738169803263,0.7034358,102040.0,102030.0,0.00129862]
[1738169803532,0.59285984,102040.0,102030.0,0.00129862]
[1738169803735,0.7034358,102040.0,102030.0,0.00129862]
[1738169804613,0.59285984,102040.0,102030.0,0.00129862]
[1738169805046,0.61285984,102040.0,102030.0,0.00129862]
[1738169807312,0.60285984,102040.0,102030.0,0.00129862]
[1738169808930,0.7134358,102040.0,102030.0,0.00129862]
[1738169809134,0.73004893,102040.0,102030.0,0.00129862]
[1738169810421,0.72804893,102040.0,102030.0,0.00029862]
[1738169810666,0.033,102020.0,102000.0,0.1292]
[1738169810910,0.20904467,102010.0,102000.0,0.1292]
[1738169811142,0.20781912,102010.0,102000.0,0.1292]
[1738169811903,0.20781912,102010.0,102000.0,0.12924828]
[1738169812658,0.20881912,102010.0,102000.0,0.12924828]
[1738169812901,0.09824316,102010.0,102000.0,0.13024828]
[1738169813140,0.09946871,102010.0,102000.0,0.13024828]
[1738169813854,0.12875552,102010.0,102000.0,0.13024828]
[1738169816293,0.23933148,102010.0,102000.0,0.13024828]
[1738169816531,0.23810593,102010.0,102000.0,0.13024828]
[1738169816770,0.23810593,102010.0,102000.0,0.13054732]
[1738169817240,0.20881912,102010.0,102000.0,0.13054732]
[1738169818450,0.20881912,102010.0,102000.0,0.04914732]
[1738169819166,0.09824316,102010.0,102000.0,0.13084732]
[1738169819428,0.0994687,102010.0,102000.0,0.13084732]
[1738169819662,0.21004466,102010.0,102000.0,0.13084732]
[1738169819897,0.20881912,102010.0,102000.0,0.13084732]
[1738169820138,0.21865095,102010.0,102000.0,0.13084732]
[1738169821382,0.25787295,102010.0,102000.0,0.13084732]
[1738169822382,0.68428865,102010.0,102000.0,0.00134732]
[1738169822886,0.67428865,102010.0,102000.0,0.00134732]
[1738169823133,0.67428865,102010.0,102000.0,0.00034732]
[1738169823633,0.67828865,102010.0,102000.0,0.00034732]
[1738169823895,0.65728865,102010.0,102000.0,0.00034732]
[1738169824119,0.66728865,102010.0,102000.0,0.00134732]
[1738169824331,0.70728865,102010.0,102000.0,0.00134732]
[1738169824547,0.68628865,102010.0,102000.0,0.00134732]
[1738169824729,0.73768556,102010.0,102000.0,0.00134732]
[1738169824962,0.71164582,102010.0,102000.0,0.00134732]
[1738169825452,0.60106986,102010.0,102000.0,0.00134732]
[1738169825666,0.52926986,102010.0,102000.0,0.00134732]
[1738169825887,0.31787295,102010.0,101990.0,0.13037677]
[1738169826093,0.15,102000.0,101990.0,0.13052151]
[1738169826307,0.35904478,102000.0,101990.0,0.13052151]
[1738169826530,0.35781912,102000.0,101990.0,0.13052151]
[1738169826756,0.35781912,102000.0,101990.0,0.00014474]
[1738169827245,0.35781912,102000.0,101990.0,0.00114474]
[1738169827493,0.50139508,102000.0,101990.0,0.00114474]
[1738169827697,0.39081912,102000.0,101990.0,0.00114474]
[1738169828140,0.39281912,102000.0,101990.0,0.00114474]
[1738169828360,0.58259508,102000.0,101990.0,0.00114474]